bitfinex-derivatives/quotes_SOLF0:USTF0_20240912
["timestamp","ask_amount","ask_price","bid_price","bid_amount"]
[1726157671715,3.3578,134.02,133.97,14.7148]
[1726157671908,3.3581,134.01,133.97,14.7148]
[1726157673123,3.3579,134.02,133.97,14.7148]
[1726157674017,3.3581,134.01,133.97,14.7148]
[1726157675515,3.3581,134.01,133.98,11.49]
[1726157677209,3.3577,134.03,133.99,11.49]
[1726157677408,1.6762,134.11,134.02,11.49]
[1726157677612,11.49,134.09,134.04,11.49]
[1726157677812,3.8174576,134.09,134.02,11.49]
[1726157678017,11.49,134.07,134.01,11.49]
[1726157678808,11.49,134.08,134.02,11.49]
[1726157679020,3.75699929,134.09,134.05,11.49]
[1726157679210,1.6762,134.11,134.06,11.49]
[1726157679624,3.72826293,134.1,134.06,11.49]
[1726157680119,3.3564,134.08,134.06,11.49]
[1726157681512,3.3561,134.1,134.06,11.49]
[1726157682208,3.3561,134.1,134.08,11.49]
[1726157683319,11.49,134.14,134.08,11.49]
[1726157683918,3.356,134.1,134.08,11.49]
[1726157684316,3.3561,134.09,134.08,11.49]
[1726157685122,3.3565,134.08,134.05,3.3077]
[1726157685420,3.3565,134.08,134.06,11.49]
[1726157686814,3.3562,134.09,134.06,11.49]
[1726157689022,3.3561,134.1,134.06,11.49]
[1726157689221,11.49,134.13,134.06,11.49]
[1726157691024,11.49,134.12,134.05,3.3077]
[1726157691423,11.49,134.12,134.05,14.7977]
[1726157691825,11.49,134.11,134.05,13.1326]
[1726157692526,11.49,134.12,134.05,13.1326]
[1726157692924,11.49,134.11,134.0,1.6116]
[1726157693119,22.44,134.15,134.03,11.49]
[1726157693317,11.49,134.1,134.03,11.49]
[1726157693520,3.3567,134.07,134.03,11.49]
[1726157693823,15.15606982,134.1,134.03,11.49]
[1726157694022,3.3568,134.07,134.03,11.49]
[1726157694225,15.15606982,134.1,134.03,11.49]
[1726157694531,3.3567,134.07,134.04,11.49]
[1726157694915,15.15606982,134.1,134.04,11.49]
[1726157696224,3.66606982,134.1,134.04,11.49]
[1726157696424,11.49,134.1,134.04,11.49]
[1726157696727,3.3568,134.07,134.04,11.49]
[1726157698227,15.30949988,134.1,134.04,11.49]
[1726157698430,3.3569,134.06,134.04,11.49]
[1726157698833,3.3567,134.07,134.04,11.49]
[1726157701933,3.357,134.06,134.04,11.49]
[1726157702133,15.30949988,134.1,134.04,11.49]
[1726157702329,15.30949988,134.1,134.01,1.6851]
[1726157702523,15.30949988,134.1,134.03,11.49]
[1726157702727,15.30949988,134.1,134.04,11.49]
[1726157702923,3.81949988,134.1,134.04,11.49]
[1726157703128,3.3565,134.08,134.07,11.49]
[1726157703337,11.49,134.13,134.07,11.49]
[1726157703521,11.49,134.14,134.08,11.49]
[1726157704032,11.49,134.15,134.08,11.49]
[1726157704828,9.1623,134.16,134.01,1.6851]
[1726157704829,3.3558,134.11,134.09,11.49]
[1726157705335,3.3558,134.11,134.07,1.627]
[1726157705336,11.49,134.15,134.08,11.49]
[1726157707022,3.3558,134.11,134.08,11.49]
[1726157707223,11.49,134.15,134.08,11.49]
[1726157707830,3.356,134.1,134.08,11.49]
[1726157708529,11.49,134.15,134.09,11.49]
[1726157709240,3.3558,134.11,134.08,11.49]
[1726157711738,3.3554,134.12,134.1,11.49]
[1726157712435,3.3554,134.12,134.11,11.49]
[1726157714340,3.3551,134.13,134.11,11.49]
[1726157714837,11.49,134.15,134.09,11.49]
[1726157715433,3.3555,134.12,134.09,11.49]
[1726157717537,3.3557,134.11,134.09,11.49]
[1726157718447,3.3554,134.12,134.09,11.49]
[1726157723155,3.3556,134.11,134.09,11.49]
[1726157725659,3.3554,134.12,134.1,11.49]
[1726157725848,3.3554,134.12,134.11,11.49]
[1726157726253,114.23422578,134.19,134.11,11.49]
[1726157726461,129.44755794,134.19,134.13,11.49]
[1726157727044,95.51755794,134.19,134.14,11.49]
[1726157727249,3.72333216,134.19,134.16,11.49]
[1726157727448,11.49,134.22,134.16,11.49]
[1726157727859,3.3537,134.19,134.17,11.49]
[1726157728051,7.07516714,134.19,134.17,11.49]
[1726157728257,3.72146714,134.19,134.17,11.49]
[1726157728458,13.1535,134.24,134.18,11.49]
[1726157728856,3.3538,134.19,134.16,11.49]
[1726157729255,3.81098825,134.2,134.14,3.3044]
[1726157729453,3.3545,134.16,134.14,1.6814]
[1726157729955,3.3545,134.16,134.14,13.1714]
[1726157730160,3.3541,134.17,134.14,13.1714]
[1726157730366,3.72772679,134.21,134.14,13.1714]
[1726157730663,3.72772679,134.21,134.16,11.49]
[1726157730664,3.3539,134.18,134.16,11.49]
[1726157731356,3.70498538,134.2,134.14,1.6814]
[1726157731555,3.70498538,134.2,134.17,11.49]
[1726157731757,3.3535,134.2,134.18,11.49]
[1726157732060,13.1535,134.24,134.18,11.49]
[1726157732259,11.49,134.24,134.18,11.49]
[1726157732466,92.56469135,134.27,134.19,11.49]
[1726157732669,11.49,134.26,134.19,11.49]
[1726157733163,92.56469135,134.27,134.21,11.49]
[1726157733357,91.74879135,134.27,134.21,11.49]
[1726157733770,3.82031336,134.28,134.22,11.49]
[1726157733970,11.49,134.29,134.22,11.49]
[1726157734363,3.3525,134.24,134.22,11.49]
[1726157735274,2.4536,134.32,134.22,11.49]
[1726157735275,11.49,134.29,134.22,11.49]
[1726157735563,11.49,134.31,134.24,11.49]
[1726157735756,11.49,134.3,134.23,11.49]
[1726157736557,3.3519,134.26,134.23,11.49]
[1726157737061,3.78315946,134.3,134.23,11.49]
[1726157737258,11.49,134.3,134.23,11.49]
[1726157737460,15.15915052,134.3,134.23,11.49]
[1726157737661,3.352,134.26,134.24,11.49]
[1726157738269,15.15915052,134.3,134.24,11.49]
[1726157739162,3.3517,134.27,134.24,11.49]
[1726157739366,3.66915052,134.3,134.25,11.49]
[1726157739559,13.1281,134.32,134.25,11.49]
[1726157739860,11.49,134.34,134.27,11.49]
[1726157741771,3.3511,134.29,134.27,11.49]
[1726157742771,3.3509,134.3,134.27,11.49]
[1726157743075,5.32648559,134.35,134.28,11.49]
[1726157743276,13.0391,134.35,134.29,11.49]
[1726157743469,3.3505,134.32,134.29,11.49]
[1726157744075,3.3506,134.31,134.29,11.49]
[1726157744371,15.24801247,134.33,134.26,1.6732]
[1726157744582,11.49,134.33,134.26,13.1632]
[1726157745071,3.351,134.3,134.26,13.1632]
[1726157745379,3.351,134.3,134.27,11.49]
[1726157745561,224.0,134.38,134.29,11.49]
[1726157745870,3.65230589,134.38,134.32,11.49]
[1726157746172,11.49,134.37,134.31,11.49]
[1726157746471,3.3497,134.35,134.31,11.49]
[1726157746672,3.64560031,134.35,134.31,11.49]
[1726157746874,11.49,134.34,134.3,1.685]
[1726157747060,11.49,134.34,134.27,23.0]
[1726157747061,3.67391276,134.33,134.28,11.49]
[1726157747471,3.67391276,134.33,134.29,11.49]
[1726157747769,11.49,134.36,134.29,11.49]
[1726157748066,17.89,134.38,134.28,17.89]
[1726157748366,3.3501,134.33,134.28,17.89]
[1726157748967,3.71694521,134.33,134.27,1.6685]
[1726157749161,17.89,134.34,134.27,1.6685]
[1726157749371,21.60433787,134.34,134.27,1.6685]
[1726157749570,3.3508,134.31,134.27,1.6685]
[1726157750174,3.3508,134.3,134.27,1.6685]
[1726157750668,21.60433787,134.34,134.27,1.6685]
[1726157751872,3.351,134.3,134.27,1.6685]
[1726157752167,44.04433787,134.34,134.27,1.6685]
[1726157752575,1.6961,134.33,134.27,1.6685]
[1726157754271,3.3508,134.3,134.27,1.6685]
[1726157755368,3.3507,134.31,134.27,1.6685]
[1726157755963,3.3509,134.3,134.27,1.6685]
[1726157756575,3.3512,134.29,134.27,1.6685]
[1726157756780,1.6961,134.33,134.27,1.6685]
[1726157757168,3.3509,134.3,134.27,1.6685]
[1726157758778,3.3511,134.29,134.27,1.6685]
[1726157759079,1.6961,134.33,134.27,1.6685]
[1726157759281,3.3509,134.3,134.27,1.6685]
[1726157760485,3.3511,134.29,134.27,1.6685]
[1726157761675,19.5861,134.33,134.25,1.6549]
[1726157762170,3.3513,134.29,134.25,1.6549]
[1726157762369,19.5861,134.33,134.25,1.6549]
[1726157763176,1.6961,134.33,134.25,19.5449]
[1726157764071,3.3507,134.31,134.25,19.5449]
[1726157764672,3.3507,134.31,134.25,22.8968]
[1726157764975,1.6961,134.33,134.25,22.8968]
[1726157764976,3.3508,134.3,134.25,19.5449]
[1726157768183,98.36985452,134.39,134.28,17.89]
[1726157768484,1.6572,134.38,134.29,1.5853]
[1726157769269,40.26,134.37,134.29,1.5853]
[1726157769476,40.26,134.36,134.26,19.4885]
[1726157769774,1.6572,134.38,134.28,17.89]
[1726157770083,11.45,134.37,134.31,11.45]
[1726157770287,3.3502,134.33,134.31,11.45]
[1726157770786,3.35,134.34,134.32,11.45]
[1726157771370,3.3497,134.35,134.32,11.45]
[1726157772181,3.3493,134.37,134.34,11.45]
[1726157772795,3.3494,134.36,134.34,11.45]
[1726157773286,1.6572,134.38,134.34,11.45]
[1726157775083,22.37,134.45,134.37,11.45]
[1726157775382,7.77280189,134.5,134.33,1.5518]
[1726157775586,3.3478,134.42,134.4,11.45]
[1726157776281,22.37,134.49,134.4,11.45]
[1726157776587,11.45,134.48,134.42,11.45]
[1726157776794,3.3473,134.45,134.42,11.45]
[1726157777290,3.3474,134.44,134.38,1.6283]
[1726157777483,3.3474,134.44,134.42,11.45]
[1726157778083,3.3476,134.43,134.4,17.86]
[1726157778284,21.59492297,134.5,134.4,17.86]
[1726157778488,3.73492297,134.5,134.42,17.86]
[1726157778688,3.73492297,134.5,134.44,17.86]
[1726157778994,17.86,134.49,134.39,1.5518]
[1726157779184,17.86,134.46,134.38,1.6283]
[1726157779385,17.86,134.46,134.37,1.6427]
[1726157779386,17.86,134.44,134.37,1.6427]
[1726157779991,1.5898,134.45,134.37,1.6427]
[1726157780388,3.3481,134.41,134.37,1.6427]
[1726157780988,3.68785014,134.42,134.37,1.6427]
[1726157781182,1.5898,134.45,134.37,1.6427]
[1726157781982,3.3479,134.42,134.37,1.6427]
[1726157782793,1.5898,134.45,134.37,1.6427]
[1726157783895,1.5898,134.45,134.38,17.86]
[1726157784291,3.3476,134.43,134.38,17.86]
[1726157784498,4.61658425,134.49,134.38,17.86]
[1726157784792,1.6531,134.48,134.38,17.86]
[1726157784990,1.6531,134.48,134.37,1.6427]
[1726157784991,3.3471,134.45,134.4,17.86]
[1726157785194,17.86,134.41,134.1,7.77206412]
[1726157785396,3.3516,134.27,134.24,17.86]
[1726157785586,1.15333017,134.4,134.26,17.86]
[1726157785786,21.52495459,134.41,134.29,17.86]
[1726157785998,3.3498,134.35,134.3,1.6237]
[1726157786194,17.86,134.41,134.3,1.6237]
[1726157786195,3.72599374,134.38,134.3,1.6237]
[1726157786497,17.86,134.41,134.3,1.6237]
[1726157786897,3.3496,134.35,134.3,1.6237]
[1726157787392,3.3496,134.35,134.31,17.86]
[1726157787586,3.3489,134.38,134.31,17.86]
[1726157789288,3.70366234,134.41,134.33,17.86]
[1726157789489,6.94794343,134.4,134.34,1.6551]
[1726157789689,6.94794343,134.39,134.34,1.6551]
[1726157789890,3.7786769,134.41,134.34,1.6551]
[1726157790091,10.08281414,134.4,134.34,1.6551]
[1726157790287,3.3483,134.4,134.34,1.6551]
[1726157790492,21.2081,134.42,134.34,1.6551]
[1726157790796,17.86,134.42,134.34,1.6551]
[1726157791102,6.73514522,134.41,134.34,1.6551]
[1726157791301,21.67171312,134.42,134.34,1.6551]
[1726157791489,6.73496478,134.41,134.34,1.6551]
[1726157791690,6.73496478,134.4,134.34,1.6551]
[1726157791890,21.67171312,134.42,134.34,1.6551]
[1726157792088,3.3484,134.4,134.34,1.6551]
[1726157793903,3.3486,134.39,134.34,1.6551]
[1726157794794,3.3484,134.4,134.34,1.6551]
[1726157794992,6.73517022,134.39,134.34,1.6551]
[1726157795191,3.81171312,134.42,134.34,1.6551]
[1726157795399,3.3485,134.4,134.34,1.6551]
[1726157796506,6.73517021,134.39,134.34,1.6551]
[1726157796806,3.3485,134.4,134.34,1.6551]
[1726157797005,6.73519013,134.39,134.34,1.6551]
[1726157797194,17.86,134.41,134.34,1.6551]
[1726157797398,17.5110487,134.4,134.34,1.6551]
[1726157797702,17.50995598,134.39,134.34,1.6551]
[1726157798008,3.3492,134.37,134.34,1.6551]
[1726157798499,3.73473793,134.4,134.34,1.6551]
[1726157798711,35.3687696,134.39,134.3,1.6237]
[1726157799009,17.5087696,134.38,134.3,3.2173]
[1726157799608,35.3687696,134.38,134.3,3.2173]
[1726157799802,17.5087696,134.37,134.3,3.2173]
[1726157799998,6.73414215,134.36,134.3,3.2173]
[1726157800192,6.73414215,134.35,134.3,3.2173]
[1726157800407,17.86,134.38,134.3,3.2173]
[1726157800606,17.50696265,134.37,134.3,3.2173]
[1726157801019,17.86,134.38,134.3,6.568]
[1726157801301,17.50708372,134.37,134.3,6.568]
[1726157802005,3.3495,134.36,134.3,3.2173]
[1726157802594,3.3495,134.36,134.3,24.4279]
[1726157802910,3.3491,134.37,134.3,21.0773]
[1726157803110,3.3491,134.37,134.31,3.3504]
[1726157803413,22.37,134.45,134.33,17.86]
[1726157803594,17.86,134.44,134.33,17.86]
[1726157803793,17.86,134.44,134.33,21.21]
[1726157804198,40.23,134.44,134.33,21.2101]
[1726157804401,6.73425243,134.36,134.33,17.86]
[1726157804612,17.46402652,134.43,134.33,17.86]
[1726157804912,35.29502142,134.42,134.33,17.86]
[1726157805106,17.43502142,134.41,134.33,17.86]
[1726157805309,17.43502142,134.4,134.33,17.86]
[1726157805509,17.43502142,134.39,134.31,17.86]
[1726157805815,17.43502142,134.38,134.31,21.2104]
[1726157805997,10.05487747,134.37,134.31,21.2104]
[1726157806201,6.70577747,134.36,134.31,17.86]
[1726157806510,3.3491,134.37,134.31,17.86]
[1726157806814,6.70541781,134.36,134.31,17.86]
[1726157807111,6.70520174,134.35,134.3,6.568]
[1726157807306,3.3498,134.35,134.3,6.568]
[1726157807608,17.86,134.4,134.3,6.568]
[1726157807802,17.43351197,134.39,134.31,3.3504]
[1726157808009,17.43351197,134.38,134.31,3.3504]
[1726157808305,3.3496,134.36,134.31,3.3504]
[1726157808506,6.70519691,134.35,134.3,3.2173]
[1726157808708,17.86,134.4,134.3,21.0773]
[1726157808908,17.43352671,134.39,134.3,21.0773]
[1726157809104,6.70520258,134.38,134.31,3.3505]
[1726157809315,17.86,134.4,134.31,3.3505]
[1726157809316,17.43352671,134.37,134.31,3.3505]
[1726157809510,10.05470258,134.36,134.31,3.3505]
[1726157809817,6.70520258,134.35,134.31,3.3505]
[1726157810913,17.86,134.42,134.31,17.86]
[1726157811111,3.3495,134.36,134.31,17.86]
[1726157811415,6.70528964,134.35,134.32,3.3502]
[1726157813619,3.3495,134.36,134.32,3.3502]
[1726157813814,6.7055745,134.35,134.32,3.3502]
[1726157814115,17.86,134.42,134.32,3.3502]
[1726157814314,3.3495,134.36,134.32,3.3502]
[1726157814524,3.3495,134.36,134.33,3.3501]
[1726157814707,3.3495,134.36,134.31,17.86]
[1726157815014,3.3496,134.35,134.31,17.86]
[1726157815517,3.35,134.34,134.31,17.86]
[1726157816617,3.3501,134.33,134.3,10.2933369]
[1726157816813,17.86,134.4,134.3,6.9426369]
[1726157817606,3.3501,134.33,134.3,3.2173]
[1726157818321,3.79309761,134.37,134.3,3.2173]
[1726157818322,17.86,134.36,134.3,3.2173]
[1726157818512,17.86,134.36,134.3,1.5936]
[1726157818711,17.86,134.36,134.26,120.73675713]
[1726157819006,3.65310892,134.36,134.27,1.5117]
[1726157819211,1.4615,134.39,134.27,1.5117]
[1726157819212,17.86,134.34,134.27,1.5117]
[1726157819512,3.3509,134.3,134.27,1.5117]
[1726157820316,3.3512,134.29,134.27,1.5117]
[1726157822020,3.3509,134.3,134.27,1.5117]
[1726157822316,17.86,134.34,134.27,1.5117]
[1726157822517,3.3512,134.29,134.27,1.5117]
[1726157823114,17.86,134.32,134.24,1.4746]
[1726157823520,1.5265,134.31,134.24,1.4746]
[1726157823721,1.5265,134.31,134.22,1.4835]
[1726157823722,17.86,134.29,134.22,1.4835]
[1726157825711,3.3519,134.26,134.22,1.4835]
[1726157825917,19.3865,134.31,134.22,4.8363]
[1726157826217,3.3513,134.28,134.22,1.4835]
[1726157826413,19.3865,134.31,134.23,3.3525]
[1726157826618,19.3865,134.31,134.22,1.4835]
[1726157827316,17.86,134.29,134.22,1.4835]
[1726157827711,3.3516,134.27,134.22,1.4835]
[1726157827925,17.86,134.27,134.22,1.4835]
[1726157828123,3.3522,134.25,134.18,3.3537]
[1726157828423,17.86,134.25,134.15,20.7326]
[1726157828824,3.63412816,134.26,134.15,20.7326]
[1726157828825,17.86,134.23,134.15,20.7326]
[1726157829315,3.3532,134.21,134.15,20.7326]
[1726157829913,3.3532,134.21,134.15,24.087]
[1726157830315,17.86,134.23,134.15,6.227]
[1726157830316,3.3533,134.2,134.15,6.227]
[1726157830512,17.86,134.23,134.15,6.227]
[1726157830712,17.86,134.23,134.16,3.3543]
[1726157831116,3.3532,134.21,134.15,2.8726]
[1726157831312,3.3532,134.21,134.15,6.227]
[1726157831522,3.3534,134.2,134.15,6.227]
[1726157832825,3.3534,134.2,134.16,3.3543]
[1726157833015,17.86,134.23,134.16,3.3543]
[1726157833016,3.3531,134.21,134.16,3.3543]
[1726157833425,17.86,134.23,134.15,6.2271]
[1726157834025,3.3533,134.21,134.15,6.2271]
[1726157834227,3.3533,134.21,134.16,3.3542]
[1726157835528,3.353,134.22,134.17,3.354]
[1726157835823,1.4556,134.25,134.16,17.86]
[1726157836022,3.3527,134.23,134.18,3.3536]
[1726157836423,17.86,134.27,134.18,17.86]
[1726157836727,17.86,134.29,134.2,17.86]
[1726157836929,17.86,134.29,134.21,1.4145]
[1726157837133,17.86,134.31,134.21,1.4145]
[1726157837731,17.86,134.31,134.22,1.4164]
[1726157838121,3.3513,134.28,134.23,3.3525]
[1726157838517,17.86,134.31,134.22,19.2764]
[1726157838928,3.3509,134.3,134.24,3.3521]
[1726157839122,1.4556,134.33,134.24,21.64345695]
[1726157839327,1.4556,134.33,134.27,17.86]
[1726157840318,4.8058,134.33,134.27,21.2114]
[1726157840630,3.3502,134.33,134.27,21.2114]
[1726157840824,3.3503,134.32,134.27,17.86]
[1726157841026,17.86,134.33,134.23,19.2924]
[1726157841428,17.86,134.33,134.22,1.4164]
[1726157841429,17.86,134.32,134.22,1.4164]
[1726157841728,17.86,134.3,134.22,1.4164]
[1726157842224,30.0924,134.31,134.22,1.4164]
[1726157842923,3.352,134.26,134.22,1.4164]
[1726157846225,3.3521,134.25,134.22,1.4164]
[1726157846428,52.4624,134.31,134.21,1.4145]
[1726157846728,3.3522,134.25,134.21,1.4145]
[1726157848431,3.3524,134.24,134.21,1.4145]
[1726157849031,3.3521,134.25,134.21,1.4145]
[1726157849235,28.61,134.3,134.21,1.4145]
[1726157850869,3.3521,134.26,134.21,1.4145]
[1726157851231,3.3522,134.25,134.21,1.4145]
[1726157852336,3.68321037,134.25,134.21,1.4145]
[1726157852540,28.61,134.26,134.19,1.3499]
[1726157852833,50.98,134.26,134.15,28.61]
[1726157853037,50.98,134.26,134.14,4.2272]
[1726157853038,28.61,134.24,134.14,4.2272]
[1726157853340,3.3533,134.21,134.16,3.3543]
[1726157853635,3.75810418,134.23,134.16,3.3543]
[1726157854832,3.353,134.22,134.16,3.3543]
[1726157856330,3.75810418,134.23,134.17,3.3541]
[1726157856532,3.75810418,134.23,134.14,4.2272]
[1726157856839,3.3532,134.21,134.16,3.3542]
[1726157857227,3.3532,134.21,134.14,4.2272]
[1726157857436,3.3532,134.21,134.16,3.3542]
[1726157858141,3.3533,134.2,134.16,3.3542]
[1726157862438,1.3507,134.24,134.15,28.61]
[1726157862643,28.61,134.29,134.17,28.61]
[1726157862839,28.61,134.29,134.17,32.26970249]
[1726157862840,29.9325,134.29,134.17,32.26970249]
[1726157863740,3.3527,134.23,134.19,3.3534]
[1726157864642,3.3527,134.23,134.19,6.1086]
[1726157867041,3.78587456,134.25,134.19,2.7552]
[1726157867239,17.88,134.26,134.19,2.7552]
[1726157867647,3.3532,134.21,134.19,2.7552]
[1726157868441,3.66474744,134.24,134.19,2.7552]
[1726157868637,17.88,134.26,134.19,2.7552]
[1726157868843,1.3225,134.29,134.19,2.7552]
[1726157869744,17.88,134.26,134.19,2.7552]
[1726157870940,3.3523,134.24,134.19,2.7552]
[1726157871250,17.88,134.28,134.19,2.7552]
[1726157871452,3.3521,134.25,134.2,3.3532]
[1726157872247,3.3523,134.24,134.2,3.3532]
[1726157874054,3.3526,134.23,134.19,6.1087]
[1726157875554,3.3529,134.22,134.19,6.1087]
[1726157876449,3.3527,134.23,134.2,3.3533]
[1726157877464,3.3524,134.24,134.21,3.353]
[1726157878251,3.3526,134.23,134.2,3.3532]
[1726157882563,3.3528,134.22,134.2,3.3532]
[1726157883458,3.3527,134.23,134.2,3.3532]
[1726157884155,3.3528,134.22,134.2,3.3532]
[1726157885461,1.3225,134.29,134.2,17.88]
[1726157886763,3.3525,134.24,134.21,3.3529]
[1726157887864,3.3525,134.24,134.2,21.2332]
[1726157888761,3.3525,134.24,134.21,3.3531]
[1726157889066,3.3525,134.24,134.2,17.88]
[1726157889963,3.3522,134.25,134.2,17.88]
[1726157890168,3.8,134.32,134.25,3.352]
[1726157890357,19.2885,134.34,134.23,17.88]
[1726157890556,3.3512,134.29,134.24,2.6744]
[1726157890863,3.65488516,134.31,134.24,2.6744]
[1726157891067,19.2885,134.34,134.24,2.6744]
[1726157891267,3.3514,134.28,134.24,2.6744]
[1726157891463,3.3514,134.28,134.24,6.0265]
[1726157891665,3.3514,134.28,134.24,2.6744]
[1726157892163,3.3514,134.28,134.25,3.352]
[1726157892361,3.3512,134.29,134.25,3.352]
[1726157894071,5.13093716,134.34,134.25,17.88]
[1726157894468,3.3512,134.29,134.25,21.2319]
[1726157895275,3.3508,134.31,134.27,3.3515]
[1726157895469,5.13093716,134.34,134.27,3.3515]
[1726157895665,3.3513,134.28,134.25,21.232]
[1726157896164,3.3508,134.3,134.25,17.88]
[1726157896473,5.13093716,134.34,134.25,17.88]
[1726157897171,5.13093716,134.34,134.26,3.3517]
[1726157897372,5.13093716,134.34,134.25,17.88]
[1726157897879,3.3509,134.3,134.26,3.3518]
[1726157898677,3.3511,134.29,134.25,21.232]
[1726157899068,3.3509,134.3,134.25,17.88]
[1726157899772,22.37,134.39,134.27,17.88]
[1726157899973,17.88,134.37,134.27,21.2314]
[1726157900272,21.55624661,134.37,134.27,21.2314]
[1726157900674,21.55624661,134.37,134.27,17.88]
[1726157901075,3.3505,134.32,134.27,17.88]
[1726157901379,21.55624661,134.37,134.28,3.3513]
[1726157901579,21.55624661,134.37,134.27,17.88]
[1726157901580,3.67624661,134.37,134.27,17.88]
[1726157901773,3.3498,134.35,134.3,3.3507]
[1726157902573,3.3498,134.35,134.31,3.3505]
[1726157902779,3.71862664,134.36,134.31,3.3505]
[1726157903472,3.3497,134.35,134.29,2.7738]
[1726157903673,1.4116,134.39,134.29,2.7738]
[1726157903872,1.4116,134.39,134.29,20.6538]
[1726157905376,4.7603,134.39,134.33,3.3499]
[1726157905574,1.4116,134.39,134.33,3.3499]
[1726157905973,1.4116,134.39,134.31,17.88]
[1726157906166,3.7294263,134.38,134.31,21.53792142]
[1726157907277,3.3491,134.37,134.33,3.3499]
[1726157907482,1.4116,134.39,134.29,20.6538]
[1726157907974,1.4116,134.39,134.3,3.3506]
[1726157908177,1.4116,134.39,134.29,20.6538]
[1726157908774,3.3496,134.35,134.3,3.3507]
[1726157909170,3.80277767,134.36,134.29,20.6538]
[1726157909472,3.3495,134.36,134.31,3.3505]
[1726157909784,3.77783288,134.36,134.31,3.3505]
[1726157909989,1.4116,134.39,134.31,3.3505]
[1726157910574,3.3495,134.36,134.31,3.3505]
[1726157910777,7.15693167,134.36,134.31,3.3505]
[1726157912786,3.3496,134.35,134.3,3.3507]
[1726157914189,17.88,134.35,134.29,2.7738]
[1726157914575,3.3503,134.33,134.29,1.3809]
[1726157915078,17.88,134.35,134.29,1.3809]
[1726157916085,3.71732817,134.36,134.29,1.3809]
[1726157916277,3.3498,134.35,134.3,3.3507]
[1726157916889,7.06672817,134.36,134.31,3.3505]
[1726157917186,3.71732817,134.36,134.29,19.2609]
[1726157917485,3.3494,134.36,134.29,19.2609]
[1726157918079,3.3497,134.35,134.31,3.3504]
[1726157919182,3.3497,134.35,134.31,3.3504]
[1726157919574,3.75363074,134.37,134.29,1.3809]
[1726157919779,40.25,134.38,134.29,1.3809]
[1726157920584,44.01303246,134.38,134.29,1.3809]
[1726157920790,3.3502,134.33,134.29,1.3809]
[1726157921182,17.88,134.36,134.29,1.3809]
[1726157921387,3.3504,134.32,134.29,1.3809]
[1726157921589,17.88,134.36,134.29,1.3809]
[1726157922790,3.3506,134.32,134.29,1.3809]
[1726157922994,3.3506,134.32,134.27,3.3515]
[1726157925497,3.3506,134.31,134.27,3.3515]
[1726157925889,17.88,134.36,134.26,4.7275]
[1726157926592,3.3507,134.31,134.26,4.7275]
[1726157926796,17.88,134.36,134.26,4.7275]
[1726157927191,3.3508,134.31,134.26,4.7275]
[1726157927595,17.88,134.36,134.26,4.7275]
[1726157928698,3.351,134.3,134.26,4.7275]
[1726157928894,3.351,134.3,134.26,1.3758]
[1726157929403,3.351,134.3,134.26,4.7276]
[1726157930297,3.3511,134.29,134.26,1.3758]
[1726157931103,3.3513,134.28,134.26,1.3758]